Cogmind - Beta 13 @@@ ROGUE MODE // 2024.08.03 @ 19:45:06 Player: Knjet Result: Self-destructed Performance ------------- Evolutions (1) 500 Regions Visited (4) 800 Robots Destroyed (4) 20 Value Destroyed (35) 35 Prototype IDs (0) 0 Alien Tech Used (0) 0 Bonus (-15) -15 TOTAL SCORE: 1340 Bonus ------- Friendly Fire -15 Cogmind --------- Core Integrity 289/400 Matter 300/300 Energy 100/100 System Corruption 0% Temperature Warm (108) Movement Treading (160) Location -9/Storage Parts ------- > --- POWER (1) -------- (None) > --- PROPULSION (2) --- Light Treads > --- UTILITY (4) ------ Small Storage Unit > --- WEAPON (2) ------- (None) > --- INVENTORY (8) ---- Light Ion Engine Grenade Launcher Peak State ------------ > --- POWER ------------ Ion Engine > --- PROPULSION ------- Light Treads Light Treads > --- UTILITY ---------- Small Storage Unit > --- WEAPON ----------- EM Pulse Gun EM Pulse Gun > --- INVENTORY -------- Light Ion Engine [Rating: 6] Favorites ----------- Power Ion Engine Engine Ion Engine Propulsion Light Treads Treads Light Treads Utility Small Storage Unit Storage Small Storage Unit Weapon EM Pulse Gun Energy Gun EM Pulse Gun Build | -11 -10 -10 -9 -9 ------- Run | Yrd Mat Min Mat Sto Slots Evolved 2 | . . . 2 . Power . | . . . . . Propulsion . | . . . . . Utility 2 | . . . 2 . Weapon . | . . . . . Parts Attached 8 | 7 . . . 1 Power 2 | 2 . . . . Engine 2 | 2 . . . . Core . | . . . . . Reactor . | . . . . . Propulsion 2 | 2 . . . . Treads 2 | 2 . . . . Leg . | . . . . . Wheel . | . . . . . Hover . | . . . . . Flight . | . . . . . Utility 1 | 1 . . . . Device . | . . . . . Storage 1 | 1 . . . . Processor . | . . . . . Hackware . | . . . . . Protection . | . . . . . Artifact . | . . . . . Weapon 3 | 2 . . . 1 Energy Gun 3 | 2 . . . 1 Energy Cannon . | . . . . . Ballistic Gun . | . . . . . Ballistic Cannon . | . . . . . Launcher . | . . . . . Special Weapon . | . . . . . Impact Weapon . | . . . . . Slashing Weapon . | . . . . . Piercing Weapon . | . . . . . Special Melee Weapon . | . . . . . Unidentified Prototypes . | . . . . . Parts Lost 5 | . . 2 . 3 Power 1 | . . . . 1 Propulsion 1 | . . . . 1 Utility . | . . . . . Weapon 3 | . . 2 . 1 Highest Loss Streak 3 | . . 2 . 3 To Critical Strikes . | . . . . . Average Slot Usage (%) 74 | . 85 84 44 44 Engine 13 | . 14 14 11 9 Treads 26 | . 28 28 22 20 Storage 13 | . 14 14 11 11 Energy Gun 21 | . 28 27 . 3 Naked Turns . | . . . . . Heaviest Build 14 | 14 14 14 10 10 Greatest Support 40 | 40 40 40 40 40 Greatest Overweight (x) . | . . . . . Average Overweight (x) . | . . . . . Largest Inventory Capacity 8 | 8 8 8 8 8 Average Capacity 7 | 7 8 8 8 8 Most Carried 3 | 2 2 3 3 3 Average Carried 2 | 1 2 2 3 2 Final Capacity 8 | 8 8 8 8 8 Final Carried 3 | 2 2 3 3 2 Class Distribution -------------------- 100% | Mutant Dominant Class ---------------- Mutant | -10/Materials Mutant | -10/Mines Mutant | -9/Materials Mutant | -9/Storage Resources | -11 -10 -10 -9 -9 ----------- Run | Yrd Mat Min Mat Sto Matter Collected 268 | 236 . 32 . . Remotely . | . . . . . Salvage Created 42 | . . 42 . . Parts 6 | . . 6 . . Haulers Intercepted . | . . . . . Recyclers Shooed . | . . . . . Parts Field Recycled . | . . . . . Retrieved Matter . | . . . . . Parts Self-Destructed . | . . . . . Prevented . | . . . . . Kills | -11 -10 -10 -9 -9 ------- Run | Yrd Mat Min Mat Sto Combat Hostiles Destroyed 3 | . . 3 . . Guns 2 | . . 2 . . AOE 1 | . . 1 . . Classes Destroyed 2 | . . 2 . . Builder 1 | . . 1 . . Swarmer 3 | . . 3 . . Best Kill Streak 3 | . . 3 . . Combat Bots Only 3 | . . 3 . . Max Kills in Single Turn 2 | . . 2 . . Gunslinging . | . . . . . Exploded 1 | . . 1 . . Melee . | . . . . . Uniques/NPCs Destroyed . | . . . . . Combat | -11 -10 -10 -9 -9 -------- Run | Yrd Mat Min Mat Sto Hostile Shots Fired 39 | . . 16 . 23 Missed 7 | . . 5 . 2 Damage Taken 672 | . . 368 . 304 Core 169 | . . 58 . 111 Absorbed by Shields . | . . . . . Core Remaining (%) 88 | 100 . 76 . . Volleys Fired 13 | . . 4 . 9 Largest 2 | . . 2 . 1 Hottest 80 | . . 80 . 50 Shots Fired 17 | . . 8 . 9 Gun 17 | . . 8 . 9 Cannon . | . . . . . Launcher . | . . . . . Special . | . . . . . Kinetic . | . . . . . Thermal 9 | . . . . 9 Explosive . | . . . . . Electromagnetic 8 | . . 8 . . Robot Hit Streak 8 | . . 2 . 8 Robot Miss Streak 2 | . . 2 . 1 Penetration Max . | . . . . . Secondary Targets . | . . . . . Shots Hit Robots 12 | . . 4 . 8 Core Hits 5 | . . 5 . . Critical Kills . | . . . . . Critical Parts Destroyed . | . . . . . Critical Strikes . | . . . . . Melee Attacks . | . . . . . Impact . | . . . . . Slashing . | . . . . . Piercing . | . . . . . Sneak Attacks . | . . . . . Combat Hostiles . | . . . . . Follow-up Attacks . | . . . . . Damage Inflicted 236 | . . 137 . 99 Guns 166 | . . 67 . 99 Cannons . | . . . . . Explosions 65 | . . 65 . . Melee . | . . . . . Ramming 5 | . . 5 . . Kinetic . | . . . . . Thermal 164 | . . 65 . 99 Explosive . | . . . . . Electromagnetic 67 | . . 67 . . Impact . | . . . . . Slashing . | . . . . . Piercing . | . . . . . Highest Corruption . | . . . . . Average Corruption . | . . . . . Corruption Purged . | . . . . . Corruption Blocked . | . . . . . Overload Shots . | . . . . . Overflow Damage . | . . . . . Projectiles . | . . . . . Explosions . | . . . . . Melee . | . . . . . Knockbacks . | . . . . . Impact . | . . . . . Kinetic . | . . . . . Secondary . | . . . . . Self-Inflicted Damage 39 | . . 39 . . Shots 1 | . . 1 . . Rammed 1 | . . 1 . . Targets Rammed 2 | . . 2 . . Kicked . | . . . . . Crushed 1 | . . 1 . . Highest Temperature 105 | . . 48 . 105 Average Temperature 45 | . . 25 . 62 Received Heat Transfer 117 | . . . . 117 Siege Activations . | . . . . . Robots Corrupted . | . . . . . Combat Hostiles . | . . . . . Parts Fried . | . . . . . Impact Corruptions . | . . . . . Robots Melted . | . . . . . Combat Hostiles . | . . . . . Parts Melted 1 | . . 1 . . Heat Transferred 396 | . . 100 . 296 Parts Sabotaged . | . . . . . Parts Stolen . | . . . . . Parts Stripped . | . . . . . Power Chain Reactions 1 | . . 1 . . Alert | -11 -10 -10 -9 -9 ------- Run | Yrd Mat Min Mat Sto Peak Influence 79 | . . 79 . 15 Initial . | . . . . . Average 36 | . . 67 . 7 Maximum Alert Level . | . . . . . Low Security (%) 100 | 100 100 100 100 100 Level 1 . | . . . . . Level 2 . | . . . . . Level 3 . | . . . . . Level 4 . | . . . . . Level 5 . | . . . . . High Security . | . . . . . Max Security . | . . . . . Squads Dispatched . | . . . . . Investigation . | . . . . . Extermination . | . . . . . Reinforcement . | . . . . . Assault . | . . . . . Garrison . | . . . . . Intercept . | . . . . . Searches Triggered . | . . . . . Construction Impeded . | . . . . . Haulers Reinforced . | . . . . . Active Scanning Responses . | . . . . . Cargo Convoy Interrupts . | . . . . . Stealth | -11 -10 -10 -9 -9 --------- Run | Yrd Mat Min Mat Sto Distress Signals 1 | . . . . 1 Communications Jammed . | . . . . . Distress Signals . | . . . . . Times Spotted 18 | . . 14 . 4 Peak Tracking Total 7 | . . 7 . 4 Tactical Retreats . | . . . . . Traps | -11 -10 -10 -9 -9 ------- Run | Yrd Mat Min Mat Sto Traps Triggered . | . . . . . Indirectly . | . . . . . Trap Hack Attempts . | . . . . . Triggered . | . . . . . Disarmed . | . . . . . Reprogrammed . | . . . . . Reused . | . . . . . Traps Extracted . | . . . . . Installed . | . . . . . Triggered . | . . . . . Machines | -11 -10 -10 -9 -9 ---------- Run | Yrd Mat Min Mat Sto Machines Disabled . | . . . . . Max in Single Turn . | . . . . . Machines Repaired . | . . . . . Machines Dismantled . | . . . . . Machines Sabotaged . | . . . . . Overloaded Fab Kills . | . . . . . Hacking | -11 -10 -10 -9 -9 --------- Run | Yrd Mat Min Mat Sto Machines Accessed . | . . . . . Terminals . | . . . . . Fabricators . | . . . . . Repair Stations . | . . . . . Recycling Units . | . . . . . Scanalyzers . | . . . . . Garrison Access . | . . . . . Total Hacks . | . . . . . Successful . | . . . . . Failed . | . . . . . Catastrophic . | . . . . . Database Lockouts . | . . . . . Manual . | . . . . . Terminals . | . . . . . Fabricators . | . . . . . Repair Stations . | . . . . . Recycling Units . | . . . . . Scanalyzers . | . . . . . Garrison Access . | . . . . . Terminal Hacks . | . . . . . Fabricator Hacks . | . . . . . Repair Station Hacks . | . . . . . Recycling Unit Hacks . | . . . . . Scanalyzer . | . . . . . Garrison Access Hacks . | . . . . . Unauthorized Hacks . | . . . . . Terminals . | . . . . . Fabricators . | . . . . . Repair Stations . | . . . . . Recycling Units . | . . . . . Scanalyzers . | . . . . . Garrison Access . | . . . . . Data Cores Recovered . | . . . . . Used . | . . . . . Hacking Detections . | . . . . . Full Trace Events . | . . . . . Feedback Events . | . . . . . Feedback Blocked . | . . . . . Robot Schematics Acquired . | . . . . . Robots Built . | . . . . . Authchips . | . . . . . Time . | . . . . . Total Robot Build Rating . | . . . . . Part Schematics Acquired . | . . . . . Parts Built . | . . . . . Authchips . | . . . . . Time . | . . . . . Total Part Build Rating . | . . . . . Parts Repaired . | . . . . . Time . | . . . . . Parts Recycled . | . . . . . Recycled Matter . | . . . . . Retrieved Matter . | . . . . . Retrieved Components . | . . . . . Parts Scanalyzed . | . . . . . Part Schematics Acquired . | . . . . . Parts Damaged . | . . . . . Bothacking | -11 -10 -10 -9 -9 ------------ Run | Yrd Mat Min Mat Sto Used RIF Installer . | . . . . . Robots Hacked . | . . . . . Non-combat . | . . . . . Combat . | . . . . . Robot Hacks Applied . | . . . . . Relay Couplers Released . | . . . . . Fabnet Peak Effective % . | . . . . . Robots Rewired . | . . . . . Allies Hacked . | . . . . . Hacks Repelled . | . . . . . Allies | -11 -10 -10 -9 -9 -------- Run | Yrd Mat Min Mat Sto Total Allies 3 | . . 3 . . Largest Group 3 | . . 3 . . Highest-Rated Group 40 | . . 40 . . Highest-Rated Ally 16 | . . 16 . . Total Orders . | . . . . . Ally Attacks 3 | . . 3 . . Total Damage 11 | . . 11 . . Kills . | . . . . . Allies Corrupted . | . . . . . Allies Melted . | . . . . . Intel | -11 -10 -10 -9 -9 ------- Run | Yrd Mat Min Mat Sto Robot Analysis Total . | . . . . . Derelict Logs Recovered 1 | . . 1 . . Drone Launches . | . . . . . Drone Recoveries . | . . . . . Exploration | -11 -10 -10 -9 -9 ------------- Run | Yrd Mat Min Mat Sto Turns Passed 546 | 114 48 285 34 65 Spaces Moved 310 | 61 31 168 22 28 Core 5 | 5 . . . . Treads 305 | 56 31 168 22 28 Legs . | . . . . . Wheels . | . . . . . Hover . | . . . . . Flight . | . . . . . Fastest Speed 50 | 50 160 160 160 160 Average Speed 158 | 150 160 160 160 160 Slowest Speed 160 | 160 160 160 160 160 Overloaded Moves . | . . . . . Propulsion Burnouts . | . . . . . Robots Hopped . | . . . . . Cave-ins Triggered . | . . . . . Exploration Rate (%) 10 | 4 7 32 5 6 Regions Visited 4 Branch Regions 2 Pre-discovered Areas . | . . . . . Known Exits Taken . | . . . . . Unknown Exits Taken 4 | 1 1 1 1 . Scrap Searched 1 | . . 1 . . Spaces Dug . | . . . . . Terrain Destroyed 4 | . . 4 . . Melee . | . . . . . Projectile . | . . . . . AOE 4 | . . 4 . . Terrain Rammed . | . . . . . Walls Destroyed . | . . . . . Machines Disabled . | . . . . . Actions | -11 -10 -10 -9 -9 --------- Run | Yrd Mat Min Mat Sto Total 345 | 80 30 175 21 39 Wait 13 | 11 . 1 . 1 Move 306 | 60 30 167 21 28 Hop . | . . . . . Pick Up 3 | 2 . 1 . . Fast Attach 5 | 5 . . . . Attach 2 | 1 . . . 1 Detach . | . . . . . Swap 1 | 1 . . . . Drop . | . . . . . Fire 13 | . . 4 . 9 Melee . | . . . . . Ram . | . . . . . Kick . | . . . . . Crush 2 | . . 2 . . Escape Stasis . | . . . . . Rewire . | . . . . . Trap . | . . . . . Miscellaneous . | . . . . . Route ------- -11/Scrapyard -10/Materials -10/Mines -9/Materials -9/Storage History --------- Turn | Location | Event 38 | -11/Scrapyard | Discovered new exit (range 16) 115 | -11/Scrapyard | Entered Materials 144 | -10/Materials | Discovered new exit (range 7) 163 | -10/Materials | Entered Mines 224 | -10/Mines | Learned 2 Materials zone layouts 306 | -10/Mines | Build established: Mutant 335 | -10/Mines | Assisted by bots powering up and referring to "LRC-V3" 415 | -10/Mines | Discovered new exit (range 7) 432 | -10/Mines | Assembled infested the area 448 | -10/Mines | Entered Materials 448 | -9/Materials | Evolved 2 slots: Utility x2 448 | -9/Materials | Discovered new exit (range 14) 466 | -9/Materials | Lost 3 allies 482 | -9/Materials | Entered Storage 547 | -9/Storage | Self-destructed Last Messages --------------- 00445_ as-16264 destroyed. 00446_ The unstable cave ceiling collapses. 00447_ as-39536 destroyed. 00447_ as-56530 destroyed. 00447_ as-54012 destroyed. 00447_ as-24582 destroyed. 00448_ The unstable cave ceiling collapses. PARAMETERS=UTILITY+2 LOCATION=UNKNOWN GOAL=ESCAPE 00448_ EXIT=FOUND Loading 2 Materials zones... LOCATION=UNKNOWN GOAL=ESCAPE 00535_ Lgt. Treads destroyed. 00538_ Critical hit (Burn: +37). 00538_ Ion Engine destroyed. 00546_ Y-45 Defender heat damages Lgt. Armor Plating. 00547_ Med. Laser destroyed. Map ----- +----------------------------------------------------+ | ?????????????????????????????????????????? | | ?????????????????????????????????????????? | | ?????????????????????????????????????????? | | ?????????????????????????????????????????? | | ?????????????????????????????????????????? | | ?????????????????????????????????????????? | | ?????????????????????????????????????????? | | ???????????????????????????????? ??????? | | ???????????????????????????????? #?????? | | ???????????????????????????????? #?????? | | ???????????????????????????????? #?????? | | ???????????????????????????????? +?????? | | ???????????????????????????????? #?????? | | ???????????????????????????????# #?????? | | ???????????????????????????????# #?????? | | ???????????????????????????????# #?????? | | ???????????????????????????????# #?????? | | ?????????????????????########### #?????? | | ?????????????????????# # #?????? | | ?????????????????????# # #?????? | | ??????????????######## # #?????? | | ??????? + + """""" + #?????? | | ?????????????######### "????" # #?????? | | ?????????????????????# "????" # #?????? | | ?????????????????????# """""" # #?????? | | ?????????????????????# Y @ Y # #?????? | | ?????????????????????########### #?????? | | ???????????????????????????????#####?????? | | ?????????????????????????????????????????? | | ?????????????????????????????????????????? | | ?????????????????????????????????????????? | | ?????????????????????????????????????????? | | ?????????????????????????????????????????? | | ?????????????????????????????????????????? | | ?????????????????????????????????????????? | | | | | | | | | | | | | | | | | | | | | | | | | | | | | | | +----------------------------------------------------+ Best States ------------- Heat Dissipation 28 Energy Generation 10 Energy Capacity 250 Matter Stores 300 Matter Capacity 300 Sight Range 16 Terrain Scan Density 10 Evasion (%) 40 Recoil Reduction 2 Item Schematics ----------------- None Robot Schematics ------------------ None Fabricated ------------ Nothing Alien Tech Used ----------------- None Achievements -------------- None Challenges ------------ None Game ------ Seed StealthRefineryMicrothruster Manual? 0 Play Time 00:05:57 Cumulative 21.9 hours Start 2024.08.03 @ 19:39:42 End 2024.08.03 @ 19:45:06 Sessions 1 Manual Loads 0 Difficulty Rogue Special Mode None Game No. 40 Rogue 40 Adventurer 0 Explorer 0 Win Type - Total 0 Types 0/0/0/0/0/0/0/0/0 Lore% 16 Gallery% 23 Achievement% 20 Wizard Run 0 Options --------- Layout 2 ASCII 0 Keyboard 1 Movement Numpad Keybinds 0 Fullscreen 1 Font 24/Smallcaps Map View 50x44 Zoom Use 0% Tactical HUD 1 Map Filters NONE Filters NONE Steam 1 RUN: 4914add3-c795-4a7c-bea8-4ad0b3c4a42e